Cogmind - Beta 11 X9 @@@ ROGUE MODE // 2022.01.15 @ 17:24:49 // Winter2021/Sauler Player: LU-1G1 Result: Destroyed by S-27 Virus with Autogun Performance ------------- Evolutions (4) 2000 Regions Visited (11) 2200 Robots Destroyed (85) 425 Value Destroyed (1723) 1723 Prototype IDs (33) 660 Alien Tech Used (0) 0 Bonus (374) 374 TOTAL SCORE: 7382 Bonus ------- High Alert Combat Kills 27 Follower Combat Kills 60 Aligned with FarCom 300 Friendly Fire -13 Cogmind --------- Core Integrity 0/850 Matter 177/300 Energy 96/100 System Corruption 0% Temperature Cool (0) Movement Core (50) Location -6/Lower Caves Parts ------- > --- POWER (1) -------- (None) > --- PROPULSION (5) --- (None) > --- UTILITY (7) ------ Weight Redist. System Machine Analyzer Advanced Visual Processing Unit Advanced Terrain Scanner Terrain Scan Processor > --- WEAPON (2) ------- Mini Assault Cannon > --- INVENTORY (5) ---- Huge Storage Unit Triangulator Improved Assault Rifle Peak State ------------ > --- POWER ------------ Light Nuclear Core > --- PROPULSION ------- VTOL Module VTOL Module VTOL Module Improved Flight Unit > --- UTILITY ---------- Machine Analyzer Triangulator Advanced Visual Processing Unit Terrain Scan Processor Improved Terrain Scan Processor Hardened Light Armor Plating System Shield > --- WEAPON ----------- Mini Assault Cannon Heavy Flail > --- INVENTORY -------- Light Fission Core Huge Storage Unit Triangulator Improved Assault Rifle Heavy Flail [Rating: 42] Favorites ----------- Power Cooled Ion Engine Engine Cooled Ion Engine Power Core Light Nuclear Core Propulsion Light Treads Treads Light Treads Leg Potential Leg Flight Unit Improved Flight Unit Utility Large Storage Unit Device Heat Sink Storage Large Storage Unit Processor Visual Processing Unit Hackware System Shield Protection Improved Light Armor Plating Weapon Medium Laser Energy Gun Medium Laser Ballistic Gun Heavy Assault Rifle Ballistic Cannon Mini Assault Cannon Launcher Grenade Launcher Impact Weapon Maul Build | -11 -10 -10 -9 -9 -9 -8 -8 -7 -6 -6 -6 ------- Run | Scr Mat Min Mat Min Exi Min Mat Fac Fac Low Low Slots Evolved 8 | . . . 2 . . . 2 2 2 . . Power . | . . . . . . . . . . . . Propulsion 3 | . . . 1 . . . . 2 . . . Utility 5 | . . . 1 . . . 2 . 2 . . Weapon . | . . . . . . . . . . . . Parts Attached 109 | 7 5 6 51 2 2 4 8 . 7 8 9 Power 13 | 1 1 2 6 . . . . . 1 1 1 Engine 10 | 1 1 2 6 . . . . . . . . Core 3 | . . . . . . . . . 1 1 1 Reactor . | . . . . . . . . . . . . Propulsion 32 | 2 1 2 18 . 2 . 4 . . 3 . Treads 22 | 2 1 2 17 . . . . . . . . Leg 2 | . . . . . 2 . . . . . . Wheel . | . . . . . . . . . . . . Hover . | . . . . . . . . . . . . Flight 8 | . . . 1 . . . 4 . . 3 . Utility 37 | 2 3 1 15 . . . 4 . 5 3 4 Device 14 | 1 1 . 3 . . . 1 . 4 . 4 Storage 3 | 1 1 . 1 . . . . . . . . Processor 10 | . . . 6 . . . 3 . . 1 . Hackware 1 | . . . . . . . . . . 1 . Protection 9 | . 1 1 5 . . . . . 1 1 . Artifact . | . . . . . . . . . . . . Weapon 27 | 2 . 1 12 2 . 4 . . 1 1 4 Energy Gun 9 | 2 . 1 6 . . . . . . . . Energy Cannon . | . . . . . . . . . . . . Ballistic Gun 7 | . . . 4 1 . 2 . . . . . Ballistic Cannon 2 | . . . . . . . . . 1 . 1 Launcher 2 | . . . 1 . . 1 . . . . . Special Weapon . | . . . . . . . . . . . . Impact Weapon 7 | . . . 1 1 . 1 . . . 1 3 Slashing Weapon . | . . . . . . . . . . . . Piercing Weapon . | . . . . . . . . . . . . Special Melee Weapon . | . . . . . . . . . . . . Unidentified Prototypes 7 | . . . 5 . . . . . 2 . . Parts Lost 36 | . 1 3 13 . . . . 1 . 6 12 Power 8 | . 1 1 3 . . . . . . 1 2 Propulsion 10 | . . 1 3 . . . . 1 . 1 4 Utility 11 | . . . 4 . . . . . . 3 4 Weapon 7 | . . 1 3 . . . . . . 1 2 Highest Loss Streak 6 | . 1 3 4 . . . . 1 . 6 6 Average Slot Usage (%) 93 | . 99 99 94 100 99 100 86 69 60 70 64 Engine 10 | . 13 13 10 11 11 11 9 4 . . . Treads 26 | . 28 28 31 33 30 11 1 . . . . Flight 1 | . . . . . . . 21 19 13 20 12 Device 3 | . 9 . 6 . . . 6 7 12 7 4 Storage 10 | . 14 14 10 11 11 11 2 . . . . Processor 8 | . . . 7 11 11 11 21 23 20 21 26 Protection 8 | . 4 14 6 11 11 11 9 7 6 2 . Energy Gun 9 | . 28 27 9 . . . . . . . . Ballistic Gun 10 | . . . 11 19 22 21 2 . . . . Impact Weapon 1 | . . . 1 2 . . 9 7 6 2 6 Naked Turns . | . . . . . . . . . . . . Heaviest Build 37 | 15 28 30 37 37 37 37 37 15 17 17 17 Greatest Support 60 | 40 20 40 60 60 60 60 60 15 19 19 17 Greatest Overweight (x) 1 | . 1 1 1 . 1 . . . . . 1 Average Overweight (x) . | . . . . . . . . . . . . Largest Inventory Capacity 15 | 8 15 15 15 15 15 15 15 5 5 5 5 Average Capacity 13 | 7 9 15 14 15 15 15 7 5 5 5 5 Most Carried 15 | 6 9 15 15 15 15 15 15 5 5 5 5 Average Carried 12 | 4 7 14 14 14 15 15 7 5 4 4 4 Final Capacity 15 | 8 15 15 15 15 15 15 5 5 5 5 5 Final Carried 15 | 6 9 15 15 15 15 15 5 5 4 5 3 Class Distribution -------------------- 56% | Scavenger-Mutant 32% | Mutant 4% | Scout Dominant Class ---------------- Mutant | -10/Materials Mutant | -10/Mines Scavenger-Mutant | -9/Materials Scavenger-Mutant | -9/Mines Scavenger-Mutant | -9/Exiles Mutant | -8/Mines Scout | -8/Materials Scout | -7/Factory Scout | -6/Factory Scavenger-Sprinter | -6/Lower Caves Derelict-Mutant | -6/Lower Caves Resources | -11 -10 -10 -9 -9 -9 -8 -8 -7 -6 -6 -6 ----------- Run | Scr Mat Min Mat Min Exi Min Mat Fac Fac Low Low Matter Collected 1799 | 234 113 60 888 110 15 92 . . . 84 203 Remotely . | . . . . . . . . . . . . Salvage Created 2809 | 133 286 58 1921 192 . . . . 29 40 150 Parts 148 | 4 18 8 103 8 . . . . . 5 2 Haulers Intercepted 8 | . 2 . 6 . . . . . . . . Recyclers Shooed 6 | . . . 6 . . . . . . . . Parts Field Recycled . | . . . . . . . . . . . . Retrieved Matter . | . . . . . . . . . . . . Parts Self-Destructed 7 | . . . . . . . . . . 1 6 Prevented 1 | . . . . . . . . . . . 1 Kills | -11 -10 -10 -9 -9 -9 -8 -8 -7 -6 -6 -6 ------- Run | Scr Mat Min Mat Min Exi Min Mat Fac Fac Low Low Combat Hostiles Destroyed 57 | . 6 4 36 6 . . . . . 4 1 Melee 3 | . . . 1 2 . . . . . . . Guns 44 | . 5 4 31 4 . . . . . . . Cannons 4 | . . . . . . . . . . 4 . AOE 4 | . . . 4 . . . . . . . . Classes Destroyed 12 | 2 4 . 5 1 . . . . . . . Worker 3 | . . . 3 . . . . . . . . Builder 5 | . . . 4 . . . . . 1 . . Tunneler 5 | 3 1 . . 1 . . . . . . . Hauler 8 | . 2 . 6 . . . . . . . . Recycler 4 | 1 . . 3 . . . . . . . . Watcher 5 | . 2 . 3 . . . . . . . . Swarmer 23 | . 4 4 10 . . . . . . 4 1 Grunt 21 | . 2 . 15 4 . . . . . . . Brawler 1 | . . . 1 . . . . . . . . Duelist 1 | . . . 1 . . . . . . . . Sentry 9 | . . . 9 . . . . . . . . Assembled 2 | . . . . 2 . . . . . . . Best Kill Streak 10 | 4 3 2 10 2 . . . . 1 4 1 Combat Bots Only 7 | . 3 2 7 2 . . . . . 4 1 Max Kills in Single Turn 3 | 1 1 1 3 1 . . . . 1 1 1 Gunslinging 1 | . . . 1 . . . . . . . . Exploded 2 | . . . 2 . . . . . . . . Melee 1 | . . . 1 1 . . . . . . . Uniques/NPCs Destroyed . | . . . . . . . . . . . . Combat | -11 -10 -10 -9 -9 -9 -8 -8 -7 -6 -6 -6 -------- Run | Scr Mat Min Mat Min Exi Min Mat Fac Fac Low Low Damage Taken 4968 | 50 415 279 2011 267 . 76 14 83 231 621 921 Core 1255 | 50 82 15 205 41 . . . . 74 347 441 Absorbed by Shields . | . . . . . . . . . . . . Core Remaining (%) 71 | 80 . 41 . . . 38 100 100 . . . Volleys Fired 263 | 16 28 15 154 20 . 4 . . . 13 13 Largest 2 | 2 2 2 2 2 . 2 . . . 1 1 Hottest 112 | 100 100 100 112 46 . 46 . . . 48 48 Shots Fired 442 | 31 56 24 273 25 . 7 . . . 13 13 Gun 410 | 31 56 24 268 25 . 6 . . . . . Cannon 26 | . . . . . . . . . . 13 13 Launcher 6 | . . . 5 . . 1 . . . . . Special . | . . . . . . . . . . . . Kinetic 149 | . . . 92 25 . 6 . . . 13 13 Thermal 287 | 31 56 24 176 . . . . . . . . Explosive 6 | . . . 5 . . 1 . . . . . Electromagnetic . | . . . . . . . . . . . . Robot Hit Streak 17 | 8 6 4 12 17 . 5 . . . 3 3 Robot Miss Streak 9 | 4 3 9 5 2 . 1 . . . 2 2 Penetration Max . | . . . . . . . . . . . . Secondary Targets 8 | . 3 . 4 1 . . . . . . . Max Gunslinging Chain 1 | . 1 . 1 1 . . . . . . . Shots Hit Robots 311 | 21 33 7 198 25 . 5 . . 1 8 13 Core Hits 126 | 5 15 5 85 8 . 2 . . . 4 2 Critical Kills . | . . . . . . . . . . . . Critical Parts Destroyed 3 | . . . 2 . . 1 . . . . . Critical Strikes 20 | 3 4 . 12 . . 1 . . . . . Burn 17 | 3 4 . 10 . . . . . . . . Destroy 2 | . . . 1 . . 1 . . . . . Smash 1 | . . . 1 . . . . . . . . Melee Attacks 99 | . . . 14 34 . . 15 . 21 . 15 Impact 99 | . . . 14 34 . . 15 . 21 . 15 Slashing . | . . . . . . . . . . . . Piercing . | . . . . . . . . . . . . Sneak Attacks 4 | . . . 2 1 . . . . 1 . . Combat Hostiles . | . . . . . . . . . . . . Follow-up Attacks . | . . . . . . . . . . . . Damage Inflicted 5459 | 286 449 133 3193 522 . 120 . . 60 250 446 Guns 3779 | 286 449 128 2536 309 . 71 . . . . . Cannons 433 | . . . . . . . . . . 250 183 Explosions 385 | . . . 336 . . 49 . . . . . Melee 829 | . . . 304 202 . . . . 60 . 263 Ramming 33 | . . 5 17 11 . . . . . . . Kinetic 1703 | . . . 890 309 . 71 . . . 250 183 Thermal 2509 | 286 449 128 1646 . . . . . . . . Explosive 385 | . . . 336 . . 49 . . . . . Electromagnetic . | . . . . . . . . . . . . Impact 829 | . . . 304 202 . . . . 60 . 263 Slashing . | . . . . . . . . . . . . Piercing . | . . . . . . . . . . . . Highest Corruption 3 | . 1 1 3 3 3 3 . . . . . Average Corruption 2 | . 1 1 3 3 3 3 . . . . . Corruption Purged . | . . . . . . . . . . . . Effects 89 | . . 4 55 13 15 2 . . . . . Message Errors 30 | . . 2 18 5 5 . . . . . . Matter Fused 21 | . . . 14 3 4 . . . . . . Heat Flow Errors 9 | . . . 5 2 1 1 . . . . . Energy Discharges 17 | . . 2 12 3 . . . . . . . Data Loss (minor) 10 | . . . 4 . 5 1 . . . . . Weapon Failures 2 | . . . 2 . . . . . . . . Overload Shots . | . . . . . . . . . . . . Overflow Damage 329 | . . . 113 79 . . . . 38 4 95 Projectiles 8 | . . . . . . . . . . 4 4 Explosions . | . . . . . . . . . . . . Melee 321 | . . . 113 79 . . . . 38 . 91 Knockbacks 10 | . . . . . . . . . . 4 6 Impact 3 | . . . . . . . . . . . 3 Kinetic 7 | . . . . . . . . . . 4 3 Secondary . | . . . . . . . . . . . . Self-Inflicted Damage 41 | . . . 41 . . . . . . . . Shots 3 | . . . 3 . . . . . . . . Rammed 6 | . . 1 4 1 . . . . . . . Targets Rammed 7 | . . 1 5 1 . . . . . . . Kicked . | . . . . . . . . . . . . Crushed 1 | . . . 1 . . . . . . . . Highest Temperature 545 | 545 329 272 266 237 165 213 . . . 17 9 Average Temperature 115 | 276 141 148 65 98 84 87 . . . 12 5 Received Heat Transfer 1203 | . 171 9 720 75 . 45 9 . 111 36 27 Effects 15 | 7 3 2 3 . . . . . . . . Shutdowns 1 | 1 . . . . . . . . . . . Energy Bleed 3 | 2 1 . . . . . . . . . . Interference 5 | . . 2 3 . . . . . . . . Matter Decay 2 | 2 . . . . . . . . . . . Short Circuit 2 | 1 1 . . . . . . . . . . Damage (minor) 1 | . 1 . . . . . . . . . . Damage (core) 1 | 1 . . . . . . . . . . . Siege Activations . | . . . . . . . . . . . . Robots Corrupted . | . . . . . . . . . . . . Combat Hostiles . | . . . . . . . . . . . . Parts Fried 9 | . . . 2 2 . . . . 3 . 2 Impact Corruptions 14 | . . . 5 3 . . . . 1 . 5 Robots Melted 2 | . 1 . 1 . . . . . . . . Combat Hostiles 1 | . 1 . . . . . . . . . . Parts Melted 17 | 2 3 2 10 . . . . . . . . Heat Transferred 8210 | 1073 1628 370 5139 . . . . . . . . Parts Sabotaged . | . . . . . . . . . . . . Parts Stolen . | . . . . . . . . . . . . Parts Stripped . | . . . . . . . . . . . . Power Chain Reactions . | . . . . . . . . . . . . Missiles Intercepted . | . . . . . . . . . . . . Alert | -11 -10 -10 -9 -9 -9 -8 -8 -7 -6 -6 -6 ------- Run | Scr Mat Min Mat Min Exi Min Mat Fac Fac Low Low Peak Influence 412 | 20 213 117 412 134 . 26 24 61 173 . . Initial 85 | . 13 82 . 85 . . 9 10 29 . . Average 141 | 6 129 36 229 76 . 2 15 30 106 . . Maximum Alert Level 2 | . 1 . 2 . . . . . . . . Low Security (%) 64 | 100 70 100 29 100 . 100 100 100 100 . . Level 1 33 | . 29 . 66 . . . . . . . . Level 2 1 | . . . 3 . . . . . . . . Level 3 . | . . . . . . . . . . . . Level 4 . | . . . . . . . . . . . . Level 5 . | . . . . . . . . . . . . High Security . | . . . . . . . . . . . . Max Security . | . . . . . . . . . . . . Squads Dispatched 7 | . . . 5 . . . . . 2 . . Investigation 4 | . . . 2 . . . . . 2 . . Extermination . | . . . . . . . . . . . . Reinforcement 3 | . . . 3 . . . . . . . . Assault . | . . . . . . . . . . . . Garrison . | . . . . . . . . . . . . Intercept . | . . . . . . . . . . . . Construction Impeded 1 | . . . 1 . . . . . . . . Haulers Reinforced . | . . . . . . . . . . . . Active Scanning Responses . | . . . . . . . . . . . . Cargo Convoy Interrupts . | . . . . . . . . . . . . Stealth | -11 -10 -10 -9 -9 -9 -8 -8 -7 -6 -6 -6 --------- Run | Scr Mat Min Mat Min Exi Min Mat Fac Fac Low Low Distress Signals 3 | . 2 . 1 . . . . . . . . Communications Jammed . | . . . . . . . . . . . . Distress Signals . | . . . . . . . . . . . . Times Spotted 118 | . 12 9 59 8 . 3 1 2 6 8 10 Peak Tracking Total 9 | . 7 3 9 4 . 3 1 2 6 4 5 Tactical Retreats 11 | . . 1 2 . . 1 . . 2 2 3 Traps | -11 -10 -10 -9 -9 -9 -8 -8 -7 -6 -6 -6 ------- Run | Scr Mat Min Mat Min Exi Min Mat Fac Fac Low Low Traps Triggered 3 | . 1 . 1 . . . . 1 . . . Indirectly . | . . . . . . . . . . . . Trap Hack Attempts . | . . . . . . . . . . . . Triggered . | . . . . . . . . . . . . Disarmed . | . . . . . . . . . . . . Reprogrammed . | . . . . . . . . . . . . Reused . | . . . . . . . . . . . . Traps Extracted . | . . . . . . . . . . . . Installed . | . . . . . . . . . . . . Triggered 1 | . . . . . . . . . . 1 . Machines | -11 -10 -10 -9 -9 -9 -8 -8 -7 -6 -6 -6 ---------- Run | Scr Mat Min Mat Min Exi Min Mat Fac Fac Low Low Machines Disabled 1 | . . . 1 . . . . . . . . Max in Single Turn 1 | . . . 1 . . . . . . . . Garrison Access 1 | . . . . . . . . 1 . . . Machines Sabotaged . | . . . . . . . . . . . . Garrisons Compromised . | . . . . . . . . . . . . Overloaded Fab Kills . | . . . . . . . . . . . . Hacking | -11 -10 -10 -9 -9 -9 -8 -8 -7 -6 -6 -6 --------- Run | Scr Mat Min Mat Min Exi Min Mat Fac Fac Low Low Machines Accessed 24 | . 2 . 11 . 2 1 1 2 5 . . Terminals 17 | . 2 . 9 . . 1 1 1 3 . . Fabricators . | . . . . . . . . . . . . Repair Stations 4 | . . . 2 . . . . . 2 . . Recycling Units . | . . . . . . . . . . . . Scanalyzers . | . . . . . . . . . . . . Garrison Access 1 | . . . . . . . . 1 . . . Total Hacks 67 | . 7 . 37 . 2 1 2 4 14 . . Successful 23 | . 1 . 12 . 2 1 2 2 3 . . Failed 43 | . 5 . 25 . . . . 2 11 . . Catastrophic 11 | . 2 . 8 . . . . . 1 . . Database Lockouts 1 | . 1 . . . . . . . . . . Manual 33 | . 7 . 18 . 1 . . 3 4 . . Terminals 47 | . 7 . 27 . . 1 2 1 9 . . Fabricators . | . . . . . . . . . . . . Repair Stations 15 | . . . 10 . . . . . 5 . . Recycling Units . | . . . . . . . . . . . . Scanalyzers . | . . . . . . . . . . . . Garrison Access 3 | . . . . . . . . 3 . . . Terminal Hacks 13 | . 1 . 5 . 2 1 2 . 2 . . Record 2 | . . . . . 1 1 . . . . . Part Schematic 2 | . 1 . 1 . . . . . . . . Prototype ID Bank 1 | . . . . . . . . . 1 . . Branch Access Points 2 | . . . . . . . 1 . 1 . . Unreport Threat 2 | . . . 2 . . . . . . . . Hauler Manifests 1 | . . . 1 . . . . . . . . Zone Layout 2 | . . . 1 . . . 1 . . . . EX-Prototype ID Bank 1 | . . . . . 1 . . . . . . Fabricator Hacks . | . . . . . . . . . . . . Repair Station Hacks 7 | . . . 7 . . . . . . . . Scan Component 4 | . . . 4 . . . . . . . . Repair 3 | . . . 3 . . . . . . . . Recycling Unit Hacks . | . . . . . . . . . . . . Scanalyzer . | . . . . . . . . . . . . Garrison Access Hacks 1 | . . . . . . . . 1 . . . Seal Access 1 | . . . . . . . . 1 . . . Unauthorized Hacks 2 | . . . . . . . . 1 1 . . Terminals 2 | . . . . . . . . 1 1 . . Assimilate 1 | . . . . . . . . 1 . . . Botnet 1 | . . . . . . . . . 1 . . Fabricators . | . . . . . . . . . . . . Repair Stations . | . . . . . . . . . . . . Recycling Units . | . . . . . . . . . . . . Scanalyzers . | . . . . . . . . . . . . Garrison Access . | . . . . . . . . . . . . Data Cores Recovered . | . . . . . . . . . . . . Used . | . . . . . . . . . . . . Hacking Detections 21 | . 2 . 11 . . . 1 2 5 . . Full Trace Events 4 | . . . 2 . . . . . 2 . . Feedback Events . | . . . . . . . . . . . . Feedback Blocked . | . . . . . . . . . . . . Robot Schematics Acquired . | . . . . . . . . . . . . Robots Built . | . . . . . . . . . . . . Authchips . | . . . . . . . . . . . . Time . | . . . . . . . . . . . . Total Robot Build Rating . | . . . . . . . . . . . . Part Schematics Acquired 2 | . 1 . 1 . . . . . . . . Parts Built . | . . . . . . . . . . . . Authchips . | . . . . . . . . . . . . Time . | . . . . . . . . . . . . Total Part Build Rating . | . . . . . . . . . . . . Parts Repaired 3 | . . . 3 . . . . . . . . Time 88 | . . . 88 . . . . . . . . Parts Recycled . | . . . . . . . . . . . . Recycled Matter . | . . . . . . . . . . . . Retrieved Matter . | . . . . . . . . . . . . Retrieved Components . | . . . . . . . . . . . . Parts Scanalyzed . | . . . . . . . . . . . . Part Schematics Acquired . | . . . . . . . . . . . . Parts Damaged . | . . . . . . . . . . . . Bothacking | -11 -10 -10 -9 -9 -9 -8 -8 -7 -6 -6 -6 ------------ Run | Scr Mat Min Mat Min Exi Min Mat Fac Fac Low Low Used RIF Installer . | . . . . . . . . . . . . Robots Hacked . | . . . . . . . . . . . . Non-combat . | . . . . . . . . . . . . Combat . | . . . . . . . . . . . . Robot Hacks Applied . | . . . . . . . . . . . . Relay Couplers Released . | . . . . . . . . . . . . Fabnet Peak Effective % . | . . . . . . . . . . . . Robots Rewired . | . . . . . . . . . . . . Allies Hacked . | . . . . . . . . . . . . Hacks Repelled . | . . . . . . . . . . . . Allies | -11 -10 -10 -9 -9 -9 -8 -8 -7 -6 -6 -6 -------- Run | Scr Mat Min Mat Min Exi Min Mat Fac Fac Low Low Total Allies 5 | . . . . 4 . . . 1 . . . Largest Group 4 | . . . . 4 . . . 1 1 . . Highest-Rated Group 71 | . . . . 71 . . . 26 26 . . Highest-Rated Ally 31 | . . . . 31 . . . 26 26 . . Total Orders . | . . . . . . . . . . . . Ally Attacks 16 | . . . . 16 . . . . . . . Total Damage 232 | . . . . 232 . . . . . . . Kills 2 | . . . . 2 . . . . . . . Allies Corrupted 1 | . . . . . . . . . 1 . . Allies Melted . | . . . . . . . . . . . . Intel | -11 -10 -10 -9 -9 -9 -8 -8 -7 -6 -6 -6 ------- Run | Scr Mat Min Mat Min Exi Min Mat Fac Fac Low Low Robot Analysis Total . | . . . . . . . . . . . . Derelict Logs Recovered 7 | . . 3 . 3 . . . . . . 1 Drone Launches . | . . . . . . . . . . . . Drone Recoveries . | . . . . . . . . . . . . Exploration | -11 -10 -10 -9 -9 -9 -8 -8 -7 -6 -6 -6 ------------- Run | Scr Mat Min Mat Min Exi Min Mat Fac Fac Low Low Turns Passed 7723 | 132 353 1250 3003 794 1046 194 124 69 313 145 300 Spaces Moved 5137 | 49 130 569 1446 390 688 182 147 173 451 355 557 Core 9 | 8 . . . . . . . . . . 1 Treads 3164 | 41 130 569 1446 390 588 . . . . . . Legs 309 | . . . . . 100 182 27 . . . . Wheels . | . . . . . . . . . . . . Hover . | . . . . . . . . . . . . Flight 1655 | . . . . . . . 120 173 451 355 556 Fastest Speed 27 | 50 160 160 160 160 90 90 32 34 37 27 27 Average Speed 120 | 142 180 203 160 160 150 90 44 35 37 28 35 Slowest Speed 240 | 160 240 240 240 160 240 90 90 37 37 40 115 Overloaded Moves . | . . . . . . . . . . . . Propulsion Burnouts . | . . . . . . . . . . . . Robots Hopped 14 | . . . . . . . . 1 7 4 2 Cave-ins Triggered . | . . . . . . . . . . . . Exploration Rate (%) 52 | 6 28 92 95 81 92 63 20 8 15 61 67 Regions Visited 11 Branch Regions 6 Pre-discovered Areas 3 | . . 2 . . 1 . . . . . . Known Exits Taken 2 | . . . . . . . 1 . 1 . . Unknown Exits Taken 9 | 1 1 1 1 1 1 1 . 1 . 1 . Scrap Searched 7 | . . 1 . 1 . . . . . 3 2 Spaces Dug 35 | . . . 2 1 . . 14 . 17 . 1 Terrain Destroyed 71 | . . . 22 1 . 11 14 . 17 3 3 Melee 35 | . . . 2 1 . . 14 . 17 . 1 Projectile 5 | . . . . . . . . . . 3 2 AOE 31 | . . . 20 . . 11 . . . . . Terrain Rammed . | . . . . . . . . . . . . Walls Destroyed . | . . . . . . . . . . . . Machines Disabled . | . . . . . . . . . . . . Actions | -11 -10 -10 -9 -9 -9 -8 -8 -7 -6 -6 -6 --------- Run | Scr Mat Min Mat Min Exi Min Mat Fac Fac Low Low Total 6002 | 77 194 638 1832 467 700 203 176 179 545 376 615 Wait 292 | . 25 35 94 15 9 14 . 7 70 3 20 Move 5098 | 48 129 568 1445 389 687 181 146 170 436 346 553 Hop 14 | . . . . . . . . 1 7 4 2 Pick Up 54 | 6 3 9 30 3 . . . . 1 1 1 Fast Attach 57 | 7 2 2 20 . 2 . 6 . 5 8 5 Attach 19 | . 1 2 10 . . . 2 . 1 . 3 Detach 6 | . 1 . 4 . . . 1 . . . . Swap 34 | . 2 2 22 2 . 4 . . 1 . 1 Drop 59 | . 3 3 34 3 2 . 6 1 3 1 3 Fire 263 | 16 28 15 154 20 . 4 . . . 13 13 Melee 98 | . . . 14 34 . . 15 . 21 . 14 Ram . | . . . . . . . . . . . . Kick . | . . . . . . . . . . . . Crush 7 | . . 1 5 1 . . . . . . . Escape Stasis . | . . . . . . . . . . . . Rewire 1 | . . 1 . . . . . . . . . Trap . | . . . . . . . . . . . . Miscellaneous . | . . . . . . . . . . . . Route ------- -11/Scrapyard -10/Materials -10/Mines (discovered 2 exits: *Mat x2) -9/Materials (discovered 6 exits: *Mat x3 / [*Min x2] / [*Sto]) -9/Mines (discovered 3 exits: *Mat x2 / *Exi) -9/Exiles (discovered 2 exits: *Min x2) -8/Mines (discovered 2 exits: *Mat x2) -8/Materials -7/Factory -6/Factory (discovered 4 exits: *Low x2 / Ext x2) -6/Lower Caves -6/Lower Caves (discovered 2 exits: [*Fac] / [Zio]) History --------- Turn | Location | Event 29 | -11/Scrapyard | Discovered new exit (range 15) 133 | -11/Scrapyard | Entered Materials 306 | -10/Materials | Build established: Mutant 321 | -10/Materials | Core integrity fell below 50% 392 | -10/Materials | Central database locked down 392 | -10/Materials | Discovered new exit (range 16) 486 | -10/Materials | Entered Mines 542 | -10/Mines | Learned location of Zion (-6) 646 | -10/Mines | Joined a pair of Derelicts in attacking an 0b10 outpost 784 | -10/Mines | Discovered new exit (range 15) 1054 | -10/Mines | Discovered new exit (range 8) 1205 | -10/Mines | Lost 3 parts (1p1n1w) 1553 | -10/Mines | Found a hidden stash of uninstalled traps 1736 | -10/Mines | Entered Materials 1736 | -9/Materials | Evolved 2 slots: Propulsion x1, Utility x1 1764 | -9/Materials | Discovered new exit (range 15) 1921 | -9/Materials | Lost 4 parts (1p1n1u1w) 2201 | -9/Materials | Discovered new exit (range 6) 2263 | -9/Materials | Build established: Scavenger-Mutant 2814 | -9/Materials | Discovered new exit (range 15) 2902 | -9/Materials | Destroyed 7 combat bots 2907 | -9/Materials | Lost 3 parts (1p1u1w) 2940 | -9/Materials | Repaired Grenade Launcher 2990 | -9/Materials | Repaired Broken Lgt. Treads 3070 | -9/Materials | Repaired Lgt. Treads 3623 | -9/Materials | Discovered new exit (range 10) 4007 | -9/Materials | Discovered new exit (range 18) 4166 | -9/Materials | Core integrity fell below 50% 4585 | -9/Materials | Discovered new exit (range 18) 4739 | -9/Materials | Entered Mines 4770 | -9/Mines | Deemed a non-threat by the Exiles lab entrance 4770 | -9/Mines | Discovered new exit (range 5) 4827 | -9/Mines | Received a Mining Laser from a helpful Derelict 4877 | -9/Mines | Learned Materials stockpile data 4943 | -9/Mines | Discovered new exit (range 10) 4959 | -9/Mines | Assisted by bots powering up and referring to "LRC-V3" 4978 | -9/Mines | Discovered new exit (range 8) 4993 | -9/Mines | Received a Rocket Launcher from a helpful Derelict 5145 | -9/Mines | Excavation squad dispatched 5145 | -9/Mines | A large section of the Mines collapsed 5394 | -9/Mines | Learned Materials stockpile data 5533 | -9/Mines | Entered Exiles 5554 | -9/Exiles | Discovered new exit (range 16) 5573 | -9/Exiles | Met 8R-AWN 5599 | -9/Exiles | Met EX-HEX 5682 | -9/Exiles | Met EX-DEC 5759 | -9/Exiles | Met EX-BIN 5781 | -9/Exiles | Aligned with FarCom system 5783 | -9/Exiles | Given EX-Vault access code 5969 | -9/Exiles | Discovered new exit (range 14) 6146 | -9/Exiles | Visited The Gauntlet 6465 | -9/Exiles | Opened EX-Vault 6477 | -9/Exiles | Found Potential Leg 6480 | -9/Exiles | Found Potential Leg 6499 | -9/Exiles | Warned to stay clear of 0b10 Research branches 6579 | -9/Exiles | Left Exiles lab with Potential Leg 6579 | -9/Exiles | Entered Mines 6688 | -8/Mines | Discovered new exit (range 13) 6734 | -8/Mines | Discovered new exit (range 8) 6765 | -8/Mines | Build established: Mutant 6773 | -8/Mines | Entered Materials 6773 | -8/Materials | Evolved 2 slots: Utility x2 6774 | -8/Materials | Identified exit to Factory 6897 | -8/Materials | Entered Factory 6897 | -7/Factory | Evolved 2 slots: Propulsion x2 6955 | -7/Factory | Discovered new exit (range 18) 6966 | -7/Factory | Entered another Factory area 6966 | -6/Factory | Accompanied by 1 ally 6966 | -6/Factory | Evolved 2 slots: Utility x2 7105 | -6/Factory | Build established: Scout 7198 | -6/Factory | Identified exit to Lower Caves 7198 | -6/Factory | Identified exit to Extension 7279 | -6/Factory | Entered Lower Caves 7349 | -6/Lower Caves | Lost 6 parts (1p1n3u1w) 7421 | -6/Lower Caves | Discovered new exit (range 9) 7424 | -6/Lower Caves | Entered another Lower Caves area 7425 | -6/Lower Caves | Encountered a Warlord checkpoint 7445 | -6/Lower Caves | Discovered new exit (range 17) 7477 | -6/Lower Caves | Core integrity fell below 50% 7652 | -6/Lower Caves | Lost 3 parts (1p1n1w) 7701 | -6/Lower Caves | Core integrity fell below 20% 7719 | -6/Lower Caves | Discovered new exit (range 14) 7724 | -6/Lower Caves | Destroyed by S-27 Virus with Autogun Last Messages --------------- 07666_ Acquired 16 matter. 07666_ Acquired Maneuvering Thrusters. 07671_ Acquired Adv. Terrain Scanner. 07689_ Acquired 44 matter. 07696_ System Shield destroyed. 07697_ Destroyed VTOL Module. 07697_ S-27 Virus system corrupted by crushing effect. 07697_ S-27 Virus knocked back. 07698_ S-27 Virus system terminally corrupted. 07698_ Lgt. Nuclear Core fried. 07706_ VTOL Module destroyed. 07708_ Hvy. Flail destroyed. 07712_ Lgt. Fission Core destroyed. 07713_ Maneuvering Thrusters destroyed. 07716_ S-27 Virus knocked back. 07719_ EXIT=FOUND 07720_ Imp. Terrain Scan Processor destroyed. 07720_ S-27 Virus knocked back. 07724_ Destroyed Lgt. Nuclear Core. 07724_ S-27 Virus knocked back. Map ----- +----------------------------------------------------+ | ?????????????????????????????????????????????????? | | ?????????????????????????????????????????????????? | | ?????????????????????????????????????????????????? | | ?????????????????????????????????????????????????? | | ????????????????#???????????####????????####?????? | | ???????????????## ???????#### ##??????## ##?#### | | ???????????????# ???????## ##?##### #?# # | | ??????????????## ??##### ### ### | | ??????????????# ### ! | | ??????????????# ## !### | | ??????????????# ### | | ???????????#??## ### | | ?????????????#?## ## ### | | ?????????????#??#?### #?#### ## | | ??????????????#???#?## ##????## ### " " "" # | | ??????????#?### ????## #??????###?# " """ # # | | ??????????#??# #### ##?????#????# "" "" # # | | ?????????????# ##??????#????# " ## | | ????????#?#??# ###??????????# """" ## | | ??????#???##?# ## !##???#?????## """"" ### | | ????????#????## ?### !%!##??#?#???## "" #?## | | ??????????#??####???# ##!s##??#???#??# #??# | | ?????????#?##??#??### ?#% #??#???????# ##??# | | ?????????##??????? ? ?# %;#?????????# #???# | | ??????#??????#?#?#?#####! ##??#????#?# ???# | | ??????#??##?????#??#?## @##?????#### ???# | | ????????#?#??????# ### # ###???# | | ?????????????#???????# Ss [ #?????? | | ??????????????#????## % #####???? ##?????? | | ??????????#??????? % ##?##???? ???????? | | ??????????#???????### ##?????????? ??????? | | ??????????####?#?#??### ###?#?##????? ???????? | | ???????????#???? ?#?#?## #?? ????#?????????????? | | ??????????#???# ???#??## ?? ???#???????? ????## | | ???????????#??????????#?## ##?? ??????? ???????## | | ???????????#????